[Event "75th Argentine Women-ch 2024"]
[Site "Buenos Aires"]
[Date "2024.11.26"]
[Round "5.9"]
[White "Perez Mosqueda, Valeria Ritzabeth"]
[Black "Palomares, Lujan"]
[Result "0-1"]
[ECO "D00"]
[WhiteElo "1476"]
[BlackElo "1633"]
[Annotator "NA RC"]
[PlyCount "88"]
[EventDate "2024.11.21"]
[EventType "swiss"]
[EventCountry "ARG"]
[SourceTitle "playchess.com"]
[Source "ChessBase"]
[SourceQuality "1"]
[TimeControl "5400+30"]

1. d4 {[%emt 0:00:03]} c6 {[%emt 0:00:12]} 2. e3 {[%emt 0:00:06]} d5 {[%emt 0:00:15]} 3. Bd3 {[%emt 0:00:06]} Nf6 {[%emt 0:00:37]} 4. Nd2 {[%emt 0:00:14]} Nbd7 {[%emt 0:03:07]} 5. f4 {[%emt 0:00:49]} e6 {[%emt 0:01:17]} 6. Ngf3 {[%emt 0:00:15]} c5 {[%emt 0:17:26]} 7. c3 {[%emt 0:00:20]} Be7 {[%emt 0:01:39]} 8. O-O {[%emt 0:00:23]} O-O {[%emt 0:01:07]} 9. Ne5 {[%emt 0:01:12]} Qc7 {[%emt 0:06:10]} 10. b3 {[%emt 0:04:53]} a6 {[%emt 0:07:47]} 11. Bb2 {[%emt 0:01:23]} b5 {[%emt 0:04:55]} 12. Rf3 {[%emt 0:02:49]} c4 {[%emt 0:04:04]} 13. Bc2 {[%emt 0:01:06]} Bb7 {[%emt 0:05:35]} 14. Rh3 {[%emt 0:04:04]} g6 {[%emt 0:19:56]} 15. Qf3 {[%emt 0:05:40]} Kg7 {[%emt 0:02:27]} 16. Kh1 {[%emt 0:03:45]} Rh8 {[%emt 0:00:32]} 17. Rg1 {[%emt 0:00:32]} Rag8 {[%emt 0:00:35]} 18. g4 {[%emt 0:01:30]} Kf8 {[%emt 0:00:48]} 19. Rf1 {[%emt 0:06:32]} h6 {[%emt 0:01:00]} 20. Nxd7+ {[%emt 0:00:40]} Qxd7 {[%emt 0:00:22]} 21. f5 {[%emt 0:00:26]} gxf5 {[%emt 0:04:02]} 22. gxf5 {[%emt 0:00:28]} Rg7 {[%emt 0:01:49]} 23. fxe6 {[%emt 0:01:49]} Qxe6 {[%emt 0:01:12]} 24. Bf5 {[%emt 0:02:14]} Qc6 {[%emt 0:02:43]} 25. Re1 {[%emt 0:01:59]} Rg5 {[%emt 0:08:22]} 26. e4 {[%emt 0:01:42]} dxe4 {[%emt 0:02:25]} 27. Nxe4 {[%emt 0:00:48]} Rxf5 {[%emt 0:01:58]} 28. Qxf5 {[%emt 0:16:43]} Nxe4 {[%emt 0:00:06]} 29. d5 {[%emt 0:00:43]} Qxd5 {[%emt 0:01:17]} 30. Qxd5 {[%emt 0:00:52]} Bxd5 {[%emt 0:00:06]} 31. Kg1 {[%emt 0:00:37]} Rg8+ {[%emt 0:00:12]} 32. Kf1 {[%emt 0:00:29]} Nd2+ {[%emt 0:00:52]} 33. Ke2 {[%emt 0:00:58]} Rg2+ {[%emt 0:00:30]} 34. Kd1 {[%emt 0:00:59]} Nf3 {[%emt 0:00:39]} 35. Re2 {[%emt 0:01:39]} Rg1+ {[%emt 0:00:35]} 36. Kc2 {[%emt 0:00:35]} Ne1+ {[%emt 0:00:41]} 37. Kb1 {[%emt 0:01:06]} Nd3+ {[%emt 0:00:32]} 38. Kc2 {[%emt 0:01:45]} Ne1+ {[%emt 0:00:33]} 39. Kb1 {[%emt 0:00:28]} Nd3+ {[%emt 0:00:55]} 40. Kc2 {[%emt 0:01:32]} Be6 {[%emt 0:00:23]} 41. Rxh6 {[%emt 0:02:37]} Ne1+ {[%emt 0:00:08]} 42. Kb1 {[%emt 0:01:05]} Bf5+ {[%emt 0:00:06]} 43. Kc1 {[%emt 0:01:27]} Bg5+ {[%emt 0:00:18]} 44. Kd1 {[%emt 0:00:26]} Nf3+ {[%emt 0:00:13]} 0-1

[Event "75th Argentine Women-ch 2024"]
[Site "Buenos Aires"]
[Date "2024.11.25"]
[Round "5.10"]
[White "Macuri, Genesis"]
[Black "Bossero, Ingrid"]
[Result "0-1"]
[ECO "D02"]
[WhiteElo "1449"]
[BlackElo "1694"]
[Annotator "NA RC"]
[PlyCount "60"]
[EventDate "2024.11.21"]
[EventType "swiss"]
[EventCountry "ARG"]
[SourceTitle "playchess.com"]
[Source "ChessBase"]
[SourceQuality "1"]
[TimeControl "5400+30"]

1. d4 {[%emt 0:00:03]} d5 {[%emt 0:00:06]} 2. Nf3 {[%emt 0:00:06]} c6 {[%emt 0:00:25]} 3. g3 {[%emt 0:00:07]} Nf6 {[%emt 0:00:54]} 4. Bg2 {[%emt 0:00:05]} e6 {[%emt 0:00:16]} 5. O-O {[%emt 0:00:07]} Be7 {[%emt 0:00:25]} 6. Nc3 {[%emt 0:00:11]} O-O {[%emt 0:00:16]} 7. b3 {[%emt 0:00:14]} Nbd7 {[%emt 0:00:23]} 8. Bb2 {[%emt 0:00:07]} c5 {[%emt 1:31:45]} 9. dxc5 {[%emt 0:00:25]} Nxc5 {[%emt 0:00:00]} 10. Qd2 {[%emt 0:02:37]} b6 {[%emt 0:00:00]} 11. Nd4 {[%emt 0:02:37]} Bb7 {[%emt 0:00:00]} 12. Rfd1 {[%emt 0:05:25]} Rc8 {[%emt 0:00:00]} 13. Ncb5 {[%emt 0:07:09]} a6 {[%emt 0:00:00]} 14. Na7 {[%emt 0:04:22]} Rc7 {[%emt 0:00:00]} 15. c4 {[%emt 0:03:01]} Ba8 {[%emt 0:00:00]} 16. Nac6 {[%emt 0:04:03]} Bxc6 {[%emt 0:00:00]} 17. Nxc6 {[%emt 0:00:37]} Rxc6 {[%emt 0:00:00]} 18. cxd5 {[%emt 0:00:08]} exd5 {[%emt 0:00:00]} 19. Bxd5 {[%emt 0:03:14]} Rc8 {[%emt 0:00:00]} 20. Bg2 {[%emt 0:08:06]} Qxd2 {[%emt 0:00:00]} 21. Rxd2 {[%emt 0:01:12]} h6 {[%emt 0:00:00]} 22. f4 {[%emt 0:02:33]} Rfd8 {[%emt 0:00:00]} 23. Rxd8+ {[%emt 0:00:45]} Rxd8 {[%emt 0:00:00]} 24. h4 {[%emt 0:05:31]} Rd2 {[%emt 0:00:00]} 25. Bxf6 {[%emt 0:01:04]} Bxf6 {[%emt 0:00:00]} 26. Rc1 {[%emt 0:08:25]} Rxe2 {[%emt 0:00:00]} 27. a4 {[%emt 0:00:30]} Kf8 {[%emt 0:00:00]} 28. Rc4 {[%emt 0:05:39]} Nxb3 {[%emt 0:00:00]} 29. Rc6 {[%emt 0:01:24]} Na5 {[%emt 0:00:00]} 30. Rxb6 {[%emt 0:00:26]} Bd4+ {[%emt 0:00:00]} 0-1